bitfinex-derivatives/quotes_SOLF0:USTF0_20250522
["timestamp","ask_amount","ask_price","bid_price","bid_amount"]
[1747903643673,5.5683,179.56,179.53,5.569]
[1747903643977,5.61066932,179.56,179.53,5.60689192]
[1747903644282,0.04236932,179.56,179.53,0.03789192]
[1747903644880,5.5685,179.55,179.53,0.03789192]
[1747903645068,0.04236932,179.56,179.53,0.03789192]
[1747903645568,105.88,179.55,179.39,0.40145395]
[1747903645768,11.11567067,179.55,179.39,0.40145395]
[1747903645975,248.56,179.54,179.39,0.40145395]
[1747903646170,248.56,179.54,179.39,143.08145395]
[1747903646572,0.04097941,179.48,179.45,0.04155229]
[1747903648078,5.5712,179.46,179.45,0.04155229]
[1747903648475,0.04097941,179.48,179.45,0.04155229]
[1747903649180,5.5712,179.46,179.45,0.04155229]
[1747903652179,5.571,179.47,179.45,0.04155229]
[1747903652377,0.04097941,179.48,179.45,0.04155229]
[1747903652684,5.5709,179.47,179.45,0.04155229]
[1747903653183,0.04097941,179.48,179.45,0.04155229]
[1747903653884,5.61167941,179.48,179.45,5.61305229]
[1747903654183,5.61167941,179.48,179.45,0.04155229]
[1747903654478,5.61167941,179.48,179.45,5.61305229]
[1747903654682,0.04097941,179.48,179.45,0.04155229]
[1747903655084,0.04097941,179.48,179.46,5.5712]
[1747903655380,0.04097941,179.48,179.45,0.04155229]
[1747903655585,0.04097941,179.48,179.45,142.74155229]
[1747903655879,0.04097941,179.48,179.47,5.5709]
[1747903656686,0.04097941,179.48,179.46,5.5712]
[1747903656878,0.04097941,179.48,179.45,142.74155229]
[1747903657880,0.04097941,179.48,179.47,5.5709]
[1747903660581,0.04097941,179.48,179.46,5.5711]
[1747903660776,0.04097941,179.48,179.45,142.74155229]
[1747903660982,0.04097941,179.48,179.45,0.04155229]
[1747903661281,0.04097941,179.48,179.36,142.68]
[1747903661584,363.0,179.47,179.38,5.5735]
[1747903661788,5.5731,179.41,179.38,5.5735]
[1747903661977,363.0,179.47,179.36,142.68]
[1747903662180,0.03938303,179.43,179.4,0.04074619]
[1747903662380,5.5728,179.41,179.4,0.04074619]
[1747903662579,0.03938303,179.43,179.32,142.68]
[1747903662780,1.9971,179.4,179.32,148.2553]
[1747903662983,5.5747,179.35,179.32,142.68]
[1747903663288,1.8956,179.39,179.32,142.68]
[1747903663486,0.04196848,179.38,179.34,0.04158282]
[1747903664489,5.5747,179.36,179.34,0.04158282]
[1747903664991,0.04196848,179.38,179.34,0.04158282]
[1747903665189,5.5741,179.37,179.34,0.04158282]
[1747903666383,5.5744,179.36,179.34,0.04158282]
[1747903666787,0.04196848,179.38,179.34,0.04158282]
[1747903667491,5.5747,179.35,179.34,0.04158282]
[1747903669693,0.04196848,179.38,179.24,142.74]
[1747903669694,142.74,179.36,179.24,142.74]
[1747903669901,363.0,179.35,179.24,142.74]
[1747903670690,0.0428194,179.31,179.28,5.61668746]
[1747903670887,0.0428194,179.31,179.28,0.03998746]
[1747903671689,5.6189194,179.31,179.28,0.03998746]
[1747903672495,5.5762,179.3,179.28,0.03998746]
[1747903672688,0.0428194,179.31,179.28,0.03998746]
[1747903673092,5.6190194,179.31,179.28,0.03998746]
[1747903673589,0.0428194,179.31,179.28,0.03998746]
[1747903673794,0.0428194,179.31,179.28,5.61668746]
[1747903674196,0.0428194,179.31,179.28,0.03998746]
[1747903675098,0.0428194,179.31,179.3,5.5762]
[1747903677998,1.94e-05,179.31,179.3,5.5762]
[1747903678200,366.7708,179.39,179.29,247.92]
[1747903678701,372.3444,179.39,179.29,247.92]
[1747903679196,0.03847586,179.36,179.35,5.5747]
[1747903681604,0.03847586,179.36,179.34,147.5349]
[1747903681800,0.03847586,179.36,179.32,0.04219939]
[1747903682307,5.5747,179.35,179.32,0.04219939]
[1747903682608,0.03847586,179.36,179.32,0.04219939]
[1747903682803,0.03847586,179.36,179.35,5.5747]
[1747903686115,0.03847586,179.36,179.32,0.04219939]
[1747903686718,0.03847586,179.36,179.33,5.5752]
[1747903687019,0.03847586,179.36,179.32,0.04219939]
[1747903688615,0.03847586,179.36,179.32,5.61769939]
[1747903688819,0.03847586,179.36,179.32,0.04219939]
[1747903690228,5.5753,179.33,179.32,0.04219939]
[1747903690614,2.0458,179.35,179.28,141.96]
[1747903690818,5.5765,179.29,179.28,141.96]
[1747903691218,5.5765,179.29,179.24,141.98]
[1747903691517,5.5765,179.29,179.26,5.5772]
[1747903691718,5.61813047,179.29,179.26,5.61439432]
[1747903692822,0.04163047,179.29,179.26,0.03719432]
[1747903693531,0.04163047,179.29,179.27,5.5769]
[1747903694028,5.61833047,179.29,179.26,0.03719432]
[1747903694533,0.04163047,179.29,179.26,0.03719432]
[1747903695227,5.5771,179.27,179.26,0.03719432]
[1747903696138,375.0,179.26,179.01,9.14140396]
[1747903696335,2.0284,179.25,179.02,147.7391]
[1747903696825,5.5809,179.15,179.09,10.09636118]
[1747903697126,5.61865961,179.14,179.1,0.03972242]
[1747903697321,0.04154079,179.14,179.1,0.04202202]
[1747903697934,5.62284079,179.14,179.1,0.04202202]
[1747903698134,0.04154079,179.14,179.1,0.04202202]
[1747903699324,5.5816,179.13,179.1,0.04202202]
[1747903699932,0.04154079,179.14,179.1,0.04202202]
[1747903700637,5.5821,179.11,179.1,0.04202202]
[1747903700831,0.04154079,179.14,179.1,0.04202202]
[1747903701939,0.04154079,179.14,179.11,5.5818]
[1747903702133,0.04154079,179.14,179.1,0.04202202]
[1747903702537,0.04154079,179.14,179.13,5.5815]
[1747903702729,0.04154079,179.14,179.13,147.6415]
[1747903703131,0.04154079,179.14,179.13,142.06]
[1747903705942,5.62274079,179.14,179.13,142.06]
[1747903707643,0.04154079,179.14,179.13,142.06]
[1747903711442,0.04154079,179.14,179.13,147.6415]
[1747903711644,0.04154079,179.14,179.13,142.06]
[1747903712645,0.04154079,179.14,179.13,147.6415]
[1747903716247,0.04154079,179.14,179.13,142.06]
[1747903716845,0.04154079,179.14,179.13,147.6415]
[1747903720148,2.0284,179.25,179.13,142.06]
[1747903720660,2.0284,179.25,179.19,5.5796]
[1747903720956,2.0284,179.25,179.13,142.06]
[1747903721255,0.03646122,179.21,179.17,0.03619274]
[1747903721748,0.03646122,179.21,179.2,5.5793]
[1747903721945,6.122e-05,179.21,179.18,141.28]
[1747903722145,5.18855877,179.3,179.28,5.5766]
[1747903722343,5.18855877,179.3,179.24,141.28]
[1747903722755,5.18855877,179.3,179.26,5.5772]
[1747903723057,5.23047716,179.3,179.26,5.6170261]
[1747903723259,0.04191839,179.3,179.26,0.0398261]
[1747903723855,5.5771,179.27,179.26,0.0398261]
[1747903725155,0.04191839,179.3,179.17,143.0515]
[1747903725454,106.06,179.31,179.18,5.5799]
[1747903725660,106.06,179.31,179.18,141.24]
[1747903725661,5.5796,179.2,179.18,141.24]
[1747903726263,5.61840057,179.21,179.18,141.24]
[1747903726452,0.04239908,179.21,179.18,141.2807423]
[1747903726859,5.62149908,179.21,179.18,141.2807423]
[1747903727856,0.04239908,179.21,179.18,146.8604423]
[1747903728361,0.04239908,179.21,179.18,141.2807423]
[1747903729161,5.62169908,179.21,179.18,141.2807423]
[1747903729358,0.04239908,179.21,179.18,141.2807423]
[1747903729661,5.5795,179.2,179.18,141.2807423]
[1747903730465,5.62149908,179.21,179.18,141.2807423]
[1747903731857,5.5794,179.2,179.18,141.2807423]
[1747903732163,0.04239908,179.21,179.18,141.2807423]
[1747903732361,0.24075134,279.52,179.25,16.73]
[1747903732362,13.79496338,179.37,179.25,16.73]
[1747903732664,13.79496338,179.37,179.27,11.11401844]
[1747903732864,13.79496338,179.37,179.35,5.5746]
[1747903733064,13.79496338,179.37,179.35,141.24]
[1747903733869,13.79496338,179.37,179.35,146.8145]
[1747903734069,0.04133321,179.38,179.35,146.8145]
[1747903734967,0.04133321,179.38,179.35,141.24]
[1747903736371,5.61513321,179.38,179.35,141.24]
[1747903738872,5.5741,179.37,179.35,141.24]
[1747903739171,0.04133321,179.38,179.35,141.24]
[1747903739667,5.5743,179.37,179.35,141.24]
[1747903739873,0.04133321,179.38,179.35,141.24]
[1747903740771,0.04133321,179.38,179.35,146.8146]
[1747903740972,0.04133321,179.38,179.35,141.24]
[1747903741166,237.03242068,179.48,179.35,141.24]
[1747903741469,5.5725,179.43,179.38,5.5737]
[1747903741772,5.8908,179.49,179.35,141.24]
[1747903741969,5.5716,179.45,179.39,5.5731]
[1747903742167,5.8908,179.49,179.4,140.39946934]
[1747903742470,0.03619697,179.44,179.41,5.5726]
[1747903742971,0.03619697,179.44,179.43,5.5722]
[1747903744074,0.03619697,179.44,179.4,140.39946934]
[1747903745675,0.03619697,179.44,179.43,5.5722]
[1747903745876,5.5705,179.49,179.4,140.39946934]
[1747903746269,5.5705,179.49,179.44,5.5716]
[1747903746574,5.5705,179.49,179.45,140.34]
[1747903746770,5.60827462,179.49,179.45,140.38245566]
[1747903747074,5.5707,179.48,179.45,145.95395566]
[1747903747276,0.03777462,179.49,179.45,145.95395566]
[1747903747468,5.5707,179.48,179.45,145.95395566]
[1747903748273,5.5712,179.47,179.45,140.38245566]
[1747903748469,0.03777462,179.49,179.45,140.38245566]
[1747903748874,5.5711,179.47,179.45,140.38245566]
[1747903749877,5.5712,179.46,179.45,140.38245566]
[1747903750378,5.571,179.47,179.45,140.38245566]
[1747903751280,5.5712,179.46,179.45,140.38245566]
[1747903751482,0.03777462,179.49,179.45,140.38245566]
[1747903752181,0.03777462,179.49,179.45,0.04245566]
[1747903752578,5.5725,179.42,179.41,140.28]
[1747903753975,0.03743991,179.43,179.4,0.04024015]
[1747903753976,5.5728,179.41,179.4,0.04024015]
[1747903755675,1105.92,179.5,179.4,0.04024015]
[1747903755676,892.98,179.5,179.4,111.54024015]
[1747903755884,426.18872626,179.5,179.49,5.5703]
[1747903756179,151.64258376,179.5,179.49,257.3503]
[1747903756575,151.64258376,179.5,179.49,251.7703]
[1747903756972,141.91428376,179.5,179.49,251.7703]
[1747903757174,131.92168376,179.5,179.49,251.7703]
[1747903758779,0.03594341,179.51,179.5,5.57]
[1747903762481,0.03594341,179.51,179.49,140.28]
[1747903763284,0.03594341,179.51,179.49,145.8501]
[1747903763678,0.03594341,179.51,179.49,140.28]
[1747903765084,0.03594341,179.51,179.48,0.03858501]
[1747903765285,5.5702,179.5,179.48,0.03858501]
[1747903765583,0.03594341,179.51,179.48,0.03858501]
[1747903766086,5.5702,179.5,179.48,0.03858501]
[1747903766288,0.03594341,179.51,179.48,0.03858501]
[1747903766586,5.57,179.5,179.48,0.03858501]
[1747903767388,5.5703,179.49,179.48,0.03858501]
[1747903768886,5.5701,179.5,179.48,0.03858501]
[1747903769291,0.03594341,179.51,179.48,0.03858501]
[1747903769589,5.5703,179.5,179.48,0.03858501]
[1747903769788,0.03594341,179.51,179.48,0.03858501]
[1747903770091,5.5702,179.5,179.48,0.03858501]
[1747903770388,0.03594341,179.51,179.48,0.03858501]
[1747903770688,5.57,179.5,179.48,0.03858501]
[1747903771284,5.5703,179.49,179.48,0.03858501]
[1747903772997,5.5701,179.5,179.48,0.03858501]
[1747903774684,5.5703,179.49,179.48,0.03858501]
[1747903777703,5.5701,179.5,179.48,0.03858501]
[1747903778603,0.03594341,179.51,179.49,105.88]
[1747903778903,4.341e-05,179.51,179.5,139.7]
[1747903779103,4.341e-05,179.51,179.5,145.27]
[1747903780499,4.341e-05,179.51,179.5,5.57]
[1747903780801,4.341e-05,179.51,179.48,0.03858501]
[1747903781002,5.57,179.5,179.48,0.03858501]
[1747903781404,4.341e-05,179.51,179.48,0.03858501]
[1747903782299,5.56994341,179.51,179.48,0.03858501]
[1747903782503,4.341e-05,179.51,179.48,0.03858501]
[1747903783504,4.341e-05,179.51,179.48,5.60908501]
[1747903783803,4.341e-05,179.51,179.48,0.03858501]
[1747903784004,5.56974341,179.51,179.48,0.03858501]
[1747903784393,4.341e-05,179.51,179.48,0.03858501]
[1747903784594,11.09978163,179.5,179.41,139.68]
[1747903784796,145.4226,179.49,179.36,139.68]
[1747903785204,5.5734,179.39,179.36,139.68]
[1747903785399,382.45502068,179.49,179.36,139.68]
[1747903785603,5.5724,179.42,179.41,0.03761479]
[1747903785802,0.04109738,179.45,179.36,139.68]
[1747903786001,6.81871357,179.47,179.36,139.68]
[1747903786706,5.5727,179.42,179.37,5.5739]
[1747903786910,0.03830353,179.41,179.38,0.04254844]
[1747903787607,0.03830353,179.41,179.39,5.5732]
[1747903788102,0.03830353,179.41,179.38,0.04254844]
[1747903788103,5.5734,179.39,179.38,0.04254844]
[1747903788505,3.9488,179.4,179.31,621.08]
[1747903789498,0.04094292,179.37,179.34,0.0414727]
[1747903790513,0.04094292,179.37,179.34,5.6162727]
[1747903790814,0.04094292,179.37,179.34,0.0414727]
[1747903791908,5.5746,179.35,179.34,0.0414727]
[1747903792708,0.04094292,179.37,179.34,0.0414727]
[1747903793411,5.61514292,179.37,179.34,0.0414727]
[1747903793615,0.04094292,179.37,179.34,0.0414727]
[1747903795314,5.61484292,179.37,179.34,0.0414727]
[1747903795615,0.04094292,179.37,179.34,0.0414727]
[1747903795813,5.5745,179.36,179.34,0.0414727]
[1747903796416,5.5742,179.36,179.34,0.0414727]
[1747903797217,0.04094292,179.37,179.34,0.0414727]
[1747903799114,5.5745,179.35,179.34,0.0414727]
[1747903799811,5.5755,179.32,179.27,5.5768]
[1747903800117,1.8955,179.36,179.27,139.16]
[1747903800814,1.8955,179.36,179.3,0.0362043]
[1747903800815,0.04009633,179.33,179.3,0.0362043]
[1747903801010,0.04009633,179.33,179.27,139.16]
[1747903801220,0.04009633,179.33,179.23,139.16]
[1747903801512,139.16,179.33,179.23,139.16]
[1747903801712,1.9079,179.32,179.23,139.16]
[1747903801914,5.578,179.25,179.23,139.16]
[1747903802213,0.04161805,179.29,179.23,139.16]
[1747903802417,5.5776,179.26,179.23,139.16]
[1747903802714,0.04161805,179.29,179.22,0.03586712]
[1747903803618,376.21242068,179.28,179.19,139.18]
[1747903803924,376.21242068,179.28,179.15,139.18]
[1747903804218,5.5794,179.2,179.15,139.18]
[1747903804418,105.94,179.27,179.15,139.18]
[1747903804619,0.04043324,179.23,179.19,0.04251918]
[1747903805203,0.04043324,179.23,179.2,5.5791]
[1747903805419,0.04043324,179.23,179.19,0.04251918]
[1747903805810,0.04043324,179.23,179.21,5.5788]
[1747903806319,0.04043324,179.23,179.2,139.22]
[1747903806716,0.04043324,179.23,179.19,0.04251918]
[1747903807814,0.04043324,179.23,179.22,5.5786]
[1747903808216,0.04043324,179.23,179.2,139.22]
[1747903808724,3.7876,179.32,179.2,139.22]
[1747903809527,0.03626933,179.28,179.24,0.03935049]
[1747903810229,0.03626933,179.28,179.24,5.61725049]
[1747903810418,0.03626933,179.28,179.24,0.03935049]
[1747903810818,0.03626933,179.28,179.24,5.61705049]
[1747903811122,0.03626933,179.28,179.24,0.03935049]
[1747903812436,5.5772,179.27,179.24,0.03935049]
[1747903812816,0.03626933,179.28,179.24,0.03935049]
[1747903814034,5.5774,179.26,179.24,0.03935049]
[1747903814627,5.5776,179.25,179.24,0.03935049]
[1747903816627,0.03626933,179.28,179.24,0.03935049]
[1747903817629,0.03626933,179.28,179.25,139.24]
[1747903817825,237.03242068,179.35,179.25,139.24]
[1747903818024,10.97982125,179.38,179.28,5.5764]
[1747903818329,10.97982125,179.38,179.25,139.24]
[1747903818528,5.575,179.34,179.29,5.5761]
[1747903818730,0.03996878,179.33,179.3,139.28152016]
[1747903819423,0.03996878,179.33,179.3,144.85752016]
[1747903820424,482.02,179.43,179.3,139.28152016]
[1747903820629,139.22,179.44,179.31,105.98]
[1747903821431,0.03946736,179.39,179.36,0.03791263]
[1747903822331,0.03946736,179.39,179.37,5.5736]
[1747903822827,0.03946736,179.39,179.36,0.03791263]
[1747903824133,0.03946736,179.39,179.37,5.5736]
[1747903824732,3.8819,179.45,179.38,5.5736]
[1747903825132,3.8819,179.45,179.38,5.5735]
[1747903825336,3.8819,179.45,179.35,139.22]
[1747903825837,0.041324,179.42,179.38,0.04284799]
[1747903826427,5.5733,179.39,179.38,0.04284799]
[1747903827441,5.5742,179.36,179.35,139.18]
[1747903828135,5.574,179.37,179.35,139.18]
[1747903828332,0.03731723,179.38,179.35,139.18]
[1747903828938,5.5742,179.36,179.35,139.18]
[1747903829531,5.5742,179.36,179.34,0.03547119]
[1747903829731,5.5745,179.35,179.34,0.03547119]
[1747903829931,0.03731723,179.38,179.34,0.03547119]
[1747903831441,5.5745,179.35,179.34,0.03547119]
[1747903833635,0.03731723,179.38,179.34,0.03547119]
[1747903834133,5.5745,179.35,179.34,0.03547119]
[1747903834435,0.03731723,179.38,179.34,0.03547119]
[1747903834637,5.5739,179.37,179.34,0.03547119]
[1747903834837,0.03731723,179.38,179.34,0.03547119]
[1747903837738,0.03731723,179.38,179.27,138.54]
[1747903837938,237.03242068,179.41,179.27,138.54]
[1747903838240,5.5763,179.3,179.27,138.54]
[1747903838641,0.03590179,179.3,179.27,138.58030756]
[1747903838933,5.61220179,179.3,179.27,138.58030756]
[1747903839241,0.03590179,179.3,179.27,138.58030756]
[1747903840541,5.5764,179.29,179.27,138.58030756]
[1747903840742,0.03590179,179.3,179.27,138.58030756]
[1747903841345,0.03590179,179.3,179.27,0.04030756]
[1747903841644,5.61210179,179.3,179.27,0.04030756]
[1747903842237,0.03590179,179.3,179.27,0.04030756]
[1747903842952,5.5767,179.28,179.27,0.04030756]
[1747903843249,6.86589501,179.41,179.27,16.72008919]
[1747903843457,5.14942125,179.37,179.28,244.5]
[1747903844255,6.86589501,179.39,179.32,11.09978163]
[1747903844452,6.86589501,179.39,179.33,138.56]
[1747903844848,6.86589501,179.39,179.34,138.56]
[1747903845352,0.038816,179.38,179.35,5.61421566]
[1747903845856,0.038816,179.38,179.35,0.03981566]
[1747903849045,5.5739,179.37,179.35,0.03981566]
[1747903849361,0.038816,179.38,179.35,0.03981566]
[1747903849557,5.612616,179.38,179.35,0.03981566]
[1747903850563,0.038816,179.38,179.35,0.03981566]
[1747903851558,5.5742,179.36,179.35,0.03981566]
[1747903852263,5.574,179.37,179.35,0.03981566]
[1747903852451,0.038816,179.38,179.35,0.03981566]
[1747903852956,5.574,179.37,179.35,0.03981566]
[1747903853158,0.038816,179.38,179.35,0.03981566]
[1747903853356,5.5742,179.36,179.35,0.03981566]
[1747903855767,0.038816,179.38,179.35,0.03981566]
[1747903857568,0.038816,179.38,179.36,5.574]
[1747903857764,3.853,179.43,179.35,0.03981566]
[1747903857963,6.86589501,179.45,179.36,138.54]
[1747903858158,6.86589501,179.45,179.4,5.5728]
[1747903858675,6.86589501,179.45,179.38,5.5733]
[1747903858676,5.5721,179.43,179.38,5.5733]
[1747903858871,0.04219824,179.42,179.39,0.040026]
[1747903860467,5.573,179.4,179.39,0.040026]
[1747903862470,1.911,179.41,179.34,138.18]
[1747903862671,3.8931,179.41,179.34,138.18]
[1747903862873,5.5742,179.36,179.34,138.18]
[1747903863173,3.8931,179.41,179.35,5.5743]
[1747903863472,5.6083918,179.4,179.36,0.04096934]
[1747903863671,0.0351918,179.4,179.36,0.04096934]
[1747903864372,5.5735,179.39,179.36,5.61496934]
[1747903864674,0.0351918,179.4,179.36,0.04096934]
[1747903864973,5.5739,179.37,179.36,0.04096934]
[1747903869077,5.5737,179.38,179.36,0.04096934]
[1747903869477,1.9163918,179.4,179.36,0.04096934]
[1747903869781,5.5739,179.37,179.36,0.04096934]
[1747903870173,1.9163918,179.4,179.32,138.16]
[1747903870374,237.03242068,179.39,179.27,3.46057499]
[1747903870580,237.03242068,179.38,179.28,138.16]
[1747903870978,5.5759,179.31,179.28,5.5765]
[1747903871276,5.61602972,179.31,179.28,5.61908853]
[1747903871477,0.04012972,179.31,179.29,5.5763]
[1747903872274,0.04012972,179.31,179.28,5.61918853]
[1747903872578,0.04012972,179.31,179.28,0.04258853]
[1747903872779,5.61592972,179.31,179.28,5.61918853]
[1747903873883,0.04012972,179.31,179.29,5.5764]
[1747903874276,0.04012972,179.31,179.28,0.04258853]
[1747903874477,5.61612972,179.31,179.28,5.61908853]
[1747903874680,0.04012972,179.31,179.28,0.04258853]
[1747903874980,0.04012972,179.31,179.29,5.5764]
[1747903875176,0.04012972,179.31,179.28,0.04258853]
[1747903875681,5.5763,179.3,179.28,0.04258853]
[1747903876871,0.04012972,179.31,179.28,0.04258853]
[1747903877985,5.5763,179.3,179.28,0.04258853]
[1747903878586,5.5761,179.3,179.28,0.04258853]
[1747903878782,0.04012972,179.31,179.28,0.04258853]
[1747903879086,5.5764,179.29,179.28,0.04258853]
[1747903879384,0.04012972,179.31,179.22,138.18]
[1747903879586,237.03242068,179.34,179.22,138.18]
[1747903879783,1.8831,179.34,179.24,7.06104972]
[1747903880183,5.5758,179.31,179.24,7.06104972]
[1747903880385,0.03658368,179.29,179.26,0.03755666]
[1747903880580,0.03658368,179.29,179.27,138.2]
[1747903880779,6.86589501,179.36,179.27,138.2]
[1747903881281,6.86589501,179.36,179.31,5.5756]
[1747903881481,6.86589501,179.36,179.26,138.2]
[1747903881982,0.04060921,179.33,179.29,0.03812773]
[1747903882381,5.5761,179.3,179.29,0.03812773]
[1747903885089,5.5761,179.3,179.24,138.2]
[1747903885287,5.5776,179.25,179.24,138.2]
[1747903885792,237.03242068,179.31,179.18,7.06104972]
[1747903886090,237.03242068,179.3,179.19,141.66057499]
[1747903886290,5.5779,179.24,179.23,0.04135947]
[1747903886490,0.04116716,179.27,179.19,141.66057499]
[1747903886689,375.23242068,179.28,179.19,141.66057499]
[1747903886993,5.5792,179.2,179.19,141.66057499]
[1747903887382,5.5792,179.2,179.19,3.46057499]
[1747903887679,5.5795,179.19,179.18,0.03853878]
[1747903893197,0.03631464,179.2,179.18,0.03853878]
[1747903893496,1.9709,179.26,179.21,5.5786]
[1747903893688,5.5779,179.25,179.21,5.5786]
[1747903893889,1.9709,179.26,179.19,244.16]
[1747903894087,5.5781,179.24,179.2,5.5791]
[1747903894290,5.61509376,179.24,179.2,5.62048232]
[1747903894584,5.61509376,179.24,179.2,0.04138232]
[1747903894788,0.03699376,179.24,179.2,0.04138232]
[1747903895397,5.5783,179.23,179.2,0.04138232]
[1747903895799,0.03699376,179.24,179.2,0.04138232]
[1747903896098,5.5783,179.23,179.2,0.04138232]
[1747903896500,0.03699376,179.24,179.2,0.04138232]
[1747903896799,5.5789,179.21,179.2,0.04138232]
[1747903897598,0.03699376,179.24,179.2,0.04138232]
[1747903897599,5.5786,179.22,179.2,0.04138232]
[1747903897795,0.03699376,179.24,179.2,0.04138232]
[1747903898194,5.5789,179.21,179.2,0.04138232]
[1747903899898,5.58,179.18,179.15,481.78]
[1747903900898,5.62140232,179.18,179.15,481.81835394]
[1747903901099,5.5802,179.17,179.15,481.81835394]
[1747903901711,5.62130232,179.18,179.15,487.39905394]
[1747903902209,5.5801,179.17,179.15,481.81835394]
[1747903902506,0.04140232,179.18,179.15,481.81835394]
[1747903903704,5.5803,179.17,179.15,481.81835394]
[1747903904516,0.04140232,179.18,179.15,481.81835394]
[1747903904712,0.04140232,179.18,179.15,0.03835394]
[1747903905615,5.5804,179.16,179.15,0.03835394]
[1747903908512,7.5595,179.17,179.15,0.03835394]
[1747903908813,0.04140232,179.18,179.15,0.03835394]
[1747903909012,5.5804,179.17,179.15,0.03835394]
[1747903909214,0.04140232,179.18,179.15,0.03835394]
[1747903909813,5.5804,179.16,179.15,0.03835394]
[1747903920615,5.5802,179.17,179.15,0.03835394]
[1747903920925,0.04140232,179.18,179.15,0.03835394]
[1747903921321,0.04140232,179.18,179.15,137.99835394]
[1747903921525,0.04140232,179.18,179.16,5.5802]
[1747903922827,0.04140232,179.18,179.17,5.5801]
[1747903923028,5.5794,179.2,179.17,5.5801]
[1747903923029,5.17388208,179.23,179.17,106.04]
[1747903923329,5.18723909,179.3,179.25,5.5776]
[1747903923527,5.5768,179.28,179.24,137.96]
[1747903923718,5.18723909,179.3,179.19,7.07071457]
[1747903923918,5.5783,179.23,179.19,12.64991457]
[1747903924125,0.04136842,179.23,179.19,0.04173741]
[1747903924332,0.04136842,179.23,179.19,138.00173741]
[1747903925026,5.5786,179.22,179.19,143.58093741]
[1747903925224,5.5786,179.22,179.19,138.00173741]
[1747903925834,5.5789,179.21,179.19,138.00173741]
[1747903926440,5.5792,179.2,179.19,138.00173741]
[1747903926735,0.04136842,179.23,179.19,138.00173741]
[1747903927136,5.5792,179.21,179.19,138.00173741]
[1747903927337,0.04136842,179.23,179.19,138.00173741]
[1747903927734,0.04136842,179.23,179.19,0.04173741]
[1747903928843,5.5792,179.2,179.19,0.04173741]
[1747903929043,0.04136842,179.23,179.19,0.04173741]
[1747903929544,5.5792,179.2,179.19,0.04173741]
[1747903930241,0.04136842,179.23,179.19,0.04173741]
[1747903930242,5.5789,179.21,179.19,0.04173741]
[1747903930446,0.04136842,179.23,179.19,0.04173741]
[1747903930739,5.5791,179.21,179.19,0.04173741]
[1747903930940,0.04136842,179.23,179.19,0.04173741]
[1747903931942,5.5792,179.2,179.19,0.04173741]
[1747903933041,5.579,179.21,179.19,0.04173741]
[1747903933630,5.5792,179.2,179.19,0.04173741]
[1747903934441,5.5804,179.16,179.15,137.94]
[1747903934742,1.9871,179.22,179.15,137.94]
[1747903935342,0.03575948,179.2,179.17,0.04160698]
[1747903935946,5.5798,179.18,179.17,0.04160698]
[1747903937041,237.03242068,179.26,179.25,93.97874052]
[1747903937242,10.64760069,179.27,179.25,50.75464052]
[1747903937546,16.22760069,179.27,179.25,46.56832094]
[1747903937745,12.47570069,179.26,179.25,46.56832094]
[1747903938047,12.47570069,179.26,179.25,19.01402094]
[1747903938246,12.47570069,179.26,179.25,2.094e-05]
[1747903939549,5.5776,179.25,179.24,3.24e-06]
[1747903947564,5.5791,179.21,179.18,143.5198]
[1747903948558,5.5795,179.19,179.18,0.03582699]
[1747903950658,0.04129121,179.21,179.18,0.03582699]
[1747903951168,5.5795,179.19,179.18,0.03582699]
[1747903954064,4.0051,179.2,179.06,4.64094644]
[1747903954270,137.58,179.19,179.1,5.5821]
[1747903954668,137.58,179.19,179.08,3.48046591]
[1747903954865,137.58,179.19,179.09,5.5825]
[1747903955170,5.5814,179.13,179.12,0.03922107]
[1747903955367,0.04177953,179.16,179.12,0.03922107]
[1747903956174,5.5814,179.13,179.12,0.03922107]
[1747903956869,5.5811,179.14,179.12,0.03922107]
[1747903957167,0.04177953,179.16,179.12,0.03922107]
[1747903960066,5.62237953,179.16,179.12,5.62072107]
[1747903960260,0.04177953,179.16,179.12,5.62072107]
[1747903961168,0.04177953,179.16,179.12,0.03922107]
[1747903961367,5.5814,179.13,179.12,0.03922107]
[1747903962973,5.5822,179.11,179.08,5.5829]
[1747903963174,310.0,179.18,179.07,5.5832]
[1747903963362,310.0,179.17,179.07,5.5832]
[1747903964075,5.5822,179.11,179.1,0.03867895]